[Event "RUS-ch Women Blitz 2019"]
[Site "Sochi"]
[Date "2019.10.17"]
[Round "1.12"]
[White "Lysenko, Maria"]
[Black "Murashova, Ekaterina"]
[Result "1/2-1/2"]
[ECO "D02"]
[WhiteElo "1986"]
[BlackElo "2248"]
[Annotator "NA"]
[PlyCount "63"]
[EventDate "2019.10.17"]
[EventType "swiss"]
[EventCountry "RUS"]
[SourceTitle "playchess.com"]
[Source "ChessBase"]
[SourceQuality "1"]
[TimeControl "180+2"]

1. Nf3 {[%emt 0:00:00]} d5 {[%emt 0:00:00]} 2. d4 {[%emt 0:00:00]} Nf6 {[%emt 0:00:01]} 3. c4 {[%emt 0:00:01]} e6 {[%emt 0:00:01]} 4. e3 {[%emt 0:00:00]} Be7 {[%emt 0:00:28]} 5. Nc3 {[%emt 0:00:02]} O-O {[%emt 0:00:01]} 6. Bd3 {[%emt 0:00:03]} dxc4 {[%emt 0:00:08]} 7. Bxc4 a6 8. a4 {[%emt 0:00:04]} c5 {[%emt 0:00:03]} 9. O-O {[%emt 0:00:06]} Nc6 {[%emt 0:00:08]} 10. dxc5 {[%emt 0:00:16]} Bxc5 {[%emt 0:00:06]} 11. Qe2 {[%emt 0:00:05]} Qe7 {[%emt 0:00:07]} 12. e4 {[%emt 0:00:13]} Rd8 {[%emt 0:00:50]} 13. Bg5 {[%emt 0:00:06]} h6 {[%emt 0:00:05]} 14. Bh4 {[%emt 0:00:01]} g5 {[%emt 0:00:11]} 15. Bg3 {[%emt 0:00:01]} Nd4 {[%emt 0:00:08]} 16. Nxd4 {[%emt 0:00:08]} Bxd4 {[%emt 0:00:01]} 17. Kh1 {[%emt 0:00:06]} Qc5 {[%emt 0:00:03]} 18. f4 {[%emt 0:00:19]} Nh7 {[%emt 0:00:15]} 19. e5 {[%emt 0:00:36]} Bxc3 {[%emt 0:00:06]} 20. bxc3 {[%emt 0:00:01]} Bd7 {[%emt 0:00:08]} 21. Bd3 {[%emt 0:00:06]} Be8 {[%emt 0:00:17]} 22. Qe4 {[%emt 0:00:08]} Nf8 {[%emt 0:00:03]} 23. fxg5 {[%emt 0:00:01]} hxg5 {[%emt 0:00:03]} 24. h4 {[%emt 0:00:38]} Bc6 {[%emt 0:00:00]} 25. Qe2 {[%emt 0:00:08]} Qxc3 {[%emt 0:00:08]} 26. Qh5 {[%emt 0:00:28]} Qxd3 {[%emt 0:00:05]} 27. Qxf7+ {[%emt 0:00:01]} Kh8 {[%emt 0:00:04]} 28. Qf6+ {[%emt 0:00:03]} Kg8 {[%emt 0:00:04]} 29. Qf7+ {[%emt 0:00:02]} Kh8 {[%emt 0:00:00]} 30. Qf6+ {[%emt 0:00:01]} Kh7 {[%emt 0:00:12]} 31. Qf7+ {[%emt 0:00:01]} Kh8 {[%emt 0:00:05]} 32. Qf6+ {[%emt 0:00:01]} 1/2-1/2

[Event "RUS-ch Women Blitz 2019"]
[Site "Sochi"]
[Date "2019.10.17"]
[Round "2.1"]
[White "Afonasieva, Anna"]
[Black "Bodnaruk, Anastasia"]
[Result "1-0"]
[ECO "E63"]
[WhiteElo "2312"]
[BlackElo "2419"]
[Annotator "NA"]
[PlyCount "117"]
[EventDate "2019.10.17"]
[EventType "swiss"]
[EventCountry "RUS"]
[SourceTitle "playchess.com"]
[Source "ChessBase"]
[SourceQuality "1"]
[TimeControl "180+2"]

1. d4 {[%emt 0:00:00]} Nf6 {[%emt 0:00:00]} 2. Nf3 {[%emt 0:00:00]} g6 {[%emt 0:00:00]} 3. c4 {[%emt 0:00:01]} Bg7 {[%emt 0:00:01]} 4. g3 {[%emt 0:00:01]} O-O {[%emt 0:00:01]} 5. Bg2 {[%emt 0:00:01]} d6 {[%emt 0:00:00]} 6. O-O {[%emt 0:00:02]} Nc6 {[%emt 0:00:01]} 7. Nc3 {[%emt 0:00:01]} a6 {[%emt 0:00:01]} 8. h3 {[%emt 0:00:02]} Rb8 {[%emt 0:00:05]} 9. e4 {[%emt 0:00:05]} b5 {[%emt 0:00:04]} 10. cxb5 {[%emt 0:00:09]} axb5 {[%emt 0:00:01]} 11. d5 {[%emt 0:00:00]} Na5 {[%emt 0:00:18]} 12. b4 {[%emt 0:00:03]} Nc4 {[%emt 0:00:07]} 13. Nd4 {[%emt 0:00:05]} Bd7 {[%emt 0:00:01]} 14. a4 {[%emt 0:00:10]} bxa4 {[%emt 0:00:05]} 15. b5 {[%emt 0:00:07]} Nb6 {[%emt 0:00:21]} 16. Qd3 {[%emt 0:00:31]} e6 {[%emt 0:00:04]} 17. Nxa4 {[%emt 0:00:34]} exd5 $11 {[%emt 0:00:10]} 18. Nxb6 {[%emt 0:00:24]} dxe4 {[%emt 0:00:01]} 19. Qc4 {[%emt 0:00:14]} Rxb6 {[%emt 0:00:05]} 20. Bg5 {[%emt 0:00:03]} d5 {[%emt 0:00:14]} 21. Qc5 {[%emt 0:00:06]} h6 {[%emt 0:00:10]} 22. Bf4 {[%emt 0:00:03]} Ne8 {[%emt 0:00:25]} 23. Qxd5 {[%emt 0:00:06]} Nd6 {[%emt 0:00:05]} 24. Rac1 {[%emt 0:00:11]} Re8 {[%emt 0:00:11]} 25. Rfd1 {[%emt 0:00:07]} g5 {[%emt 0:00:12]} 26. Be3 {[%emt 0:00:05]} Bxb5 {[%emt 0:00:12]} 27. Nf5 {[%emt 0:00:12]} Rb8 {[%emt 0:00:10]} 28. Nxd6 {[%emt 0:00:10]} Qxd6 {[%emt 0:00:08]} 29. Qxd6 {[%emt 0:00:03]} cxd6 {[%emt 0:00:01]} 30. Rxd6 {[%emt 0:00:02]} Bd3 {[%emt 0:00:03]} 31. Rd7 {[%emt 0:00:04]} Rb1 {[%emt 0:00:24]} 32. Rxb1 {[%emt 0:00:05]} Bxb1 {[%emt 0:00:00]} 33. h4 {[%emt 0:00:01]} g4 {[%emt 0:00:08]} 34. Bf1 {[%emt 0:00:05]} Ba2 {[%emt 0:00:04]} 35. h5 {[%emt 0:00:07]} Rb8 {[%emt 0:00:07]} 36. Be2 {[%emt 0:00:03]} Be6 {[%emt 0:00:01]} 37. Rc7 {[%emt 0:00:03]} Rb2 {[%emt 0:00:04]} 38. Bf1 {[%emt 0:00:03]} Rb1 {[%emt 0:00:01]} 39. Kg2 {[%emt 0:00:00]} Ra1 {[%emt 0:00:05]} 40. Rb7 {[%emt 0:00:02]} Rd1 {[%emt 0:00:02]} 41. Be2 {[%emt 0:00:01]} Ra1 {[%emt 0:00:01]} 42. Rb8+ {[%emt 0:00:02]} Kh7 {[%emt 0:00:02]} 43. Rb7 {[%emt 0:00:01]} Ra2 {[%emt 0:00:01]} 44. Bf1 {[%emt 0:00:02]} Be5 {[%emt 0:00:03]} 45. Rb4 {[%emt 0:00:02]} Kg7 {[%emt 0:00:03]} 46. Kg1 {[%emt 0:00:03]} Rc2 {[%emt 0:00:04]} 47. Rxe4 {[%emt 0:00:03]} Ra2 {[%emt 0:00:02]} 48. Rxe5 {[%emt 0:00:01]} Ra1 {[%emt 0:00:02]} 49. Kg2 {[%emt 0:00:01]} Kg8 {[%emt 0:00:01]} 50. Bd3 {[%emt 0:00:02]} Ra2 {[%emt 0:00:01]} 51. Bf5 {[%emt 0:00:01]} Bc4 {[%emt 0:00:02]} 52. Bxg4 {[%emt 0:00:03]} Kg7 {[%emt 0:00:02]} 53. Bf3 {[%emt 0:00:01]} f6 {[%emt 0:00:01]} 54. Re7+ {[%emt 0:00:01]} Kf8 {[%emt 0:00:01]} 55. Rc7 {[%emt 0:00:01]} Be6 {[%emt 0:00:01]} 56. Bxh6+ {[%emt 0:00:02]} Kg8 {[%emt 0:00:00]} 57. Be3 {[%emt 0:00:02]} Rb2 {[%emt 0:00:02]} 58. h6 {[%emt 0:00:01]} Kh8 {[%emt 0:00:01]} 59. Bd4 {[%emt 0:00:02]} 1-0

[Event "RUS-ch Women Blitz 2019"]
[Site "Sochi"]
[Date "2019.10.17"]
[Round "2.2"]
[White "Voit, Daria"]
[Black "Fominykh, Maria"]
[Result "1-0"]
[ECO "E61"]
[WhiteElo "2336"]
[BlackElo "2206"]
[Annotator "NA"]
[PlyCount "93"]
[EventDate "2019.10.17"]
[EventType "swiss"]
[EventCountry "RUS"]
[SourceTitle "playchess.com"]
[Source "ChessBase"]
[SourceQuality "1"]
[TimeControl "180+2"]

1. d4 {[%emt 0:00:00]} d6 {[%emt 0:00:00]} 2. Nf3 {[%emt 0:00:05]} Nf6 {[%emt 0:00:01]} 3. c4 {[%emt 0:00:01]} g6 {[%emt 0:00:06]} 4. Nc3 {[%emt 0:00:03]} Bg7 {[%emt 0:00:01]} 5. Bg5 {[%emt 0:00:01]} h6 {[%emt 0:00:08]} 6. Bh4 {[%emt 0:00:02]} O-O {[%emt 0:00:27]} 7. h3 {[%emt 0:00:03]} Nc6 {[%emt 0:00:13]} 8. e3 {[%emt 0:00:11]} Bf5 {[%emt 0:00:39]} 9. Bd3 {[%emt 0:00:03]} Bxd3 {[%emt 0:00:05]} 10. Qxd3 {[%emt 0:00:02]} e5 {[%emt 0:00:18]} 11. O-O {[%emt 0:00:41]} Qe8 {[%emt 0:00:14]} 12. Bxf6 {[%emt 0:00:12]} Bxf6 {[%emt 0:00:01]} 13. Nd5 {[%emt 0:00:02]} Bd8 {[%emt 0:00:00]} 14. dxe5 {[%emt 0:00:02]} Nxe5 {[%emt 0:00:10]} 15. Nxe5 {[%emt 0:00:02]} dxe5 {[%emt 0:00:15]} 16. Rad1 {[%emt 0:00:06]} c6 {[%emt 0:00:03]} 17. Nc3 {[%emt 0:00:01]} Bb6 {[%emt 0:00:13]} 18. Ne4 {[%emt 0:00:43]} Qe7 {[%emt 0:00:14]} 19. Qd7 {[%emt 0:00:13]} Qxd7 {[%emt 0:00:07]} 20. Rxd7 {[%emt 0:00:02]} Rab8 {[%emt 0:00:05]} 21. c5 {[%emt 0:00:19]} Bd8 {[%emt 0:00:05]} 22. Nd6 {[%emt 0:00:09]} b6 {[%emt 0:00:03]} 23. Rxa7 {[%emt 0:00:02]} bxc5 {[%emt 0:00:01]} 24. b3 {[%emt 0:00:00]} Bb6 {[%emt 0:00:10]} 25. Ra6 {[%emt 0:00:11]} Rfd8 {[%emt 0:00:06]} 26. Nc4 {[%emt 0:00:01]} Bc7 {[%emt 0:00:02]} 27. Rxc6 {[%emt 0:00:01]} Rd7 {[%emt 0:00:01]} 28. Rxc5 {[%emt 0:00:03]} e4 {[%emt 0:00:02]} 29. g3 {[%emt 0:00:10]} h5 {[%emt 0:00:01]} 30. Rc1 {[%emt 0:00:02]} Rbd8 {[%emt 0:00:04]} 31. Kg2 {[%emt 0:00:03]} Bb8 {[%emt 0:00:01]} 32. a4 {[%emt 0:00:02]} h4 {[%emt 0:00:02]} 33. gxh4 {[%emt 0:00:03]} f5 {[%emt 0:00:02]} 34. a5 {[%emt 0:00:03]} f4 {[%emt 0:00:01]} 35. exf4 {[%emt 0:00:01]} Bxf4 {[%emt 0:00:01]} 36. Re1 {[%emt 0:00:01]} Rd3 {[%emt 0:00:05]} 37. Rxe4 {[%emt 0:00:02]} Bb8 {[%emt 0:00:01]} 38. b4 {[%emt 0:00:02]} Ba7 {[%emt 0:00:02]} 39. Rc7 {[%emt 0:00:06]} Bd4 {[%emt 0:00:01]} 40. Rf4 {[%emt 0:00:07]} Rc3 {[%emt 0:00:03]} 41. Rc6 {[%emt 0:00:01]} Ba7 {[%emt 0:00:03]} 42. b5 {[%emt 0:00:01]} Rd2 {[%emt 0:00:03]} 43. Rxg6+ {[%emt 0:00:04]} Kh7 {[%emt 0:00:01]} 44. Rc6 {[%emt 0:00:03]} Rdc2 {[%emt 0:00:01]} 45. Rc7+ {[%emt 0:00:01]} Kg6 {[%emt 0:00:02]} 46. Ne5+ {[%emt 0:00:03]} Kh5 {[%emt 0:00:01]} 47. Rh7# {[%emt 0:00:05]} 1-0

[Event "RUS-ch Women Blitz 2019"]
[Site "Sochi"]
[Date "2019.10.20"]
[Round "2.2"]
[White "Kochukova, Anna"]
[Black "Dolinskaya, Mariia"]
[Result "1-0"]
[ECO "C07"]
[WhiteElo "2143"]
[BlackElo "1304"]
[Annotator "NA"]
[PlyCount "115"]
[EventDate "2019.10.17"]
[EventType "swiss"]
[EventCountry "RUS"]
[SourceTitle "playchess.com"]
[Source "ChessBase"]
[SourceQuality "1"]
[TimeControl "180+2"]

1. e4 {[%emt 0:00:00]} e6 {[%emt 0:00:00]} 2. d4 {[%emt 0:00:00]} d5 {[%emt 0:00:01]} 3. Nd2 {[%emt 0:00:00]} c5 {[%emt 0:00:03]} 4. exd5 {[%emt 0:00:04]} Qxd5 {[%emt 0:00:03]} 5. Ngf3 {[%emt 0:00:05]} Nf6 {[%emt 0:00:06]} 6. Bc4 {[%emt 0:00:01]} Qd8 {[%emt 0:00:01]} 7. O-O {[%emt 0:00:04]} Be7 {[%emt 0:00:03]} 8. Nb3 {[%emt 0:00:10]} cxd4 {[%emt 0:00:08]} 9. Nbxd4 {[%emt 0:00:03]} O-O {[%emt 0:00:03]} 10. c3 {[%emt 0:00:01]} Nbd7 {[%emt 0:00:06]} 11. Re1 {[%emt 0:00:18]} Nc5 {[%emt 0:00:03]} 12. Qe2 {[%emt 0:00:13]} b6 {[%emt 0:00:09]} 13. Nc6 {[%emt 0:00:06]} Qc7 {[%emt 0:00:07]} 14. Nxe7+ {[%emt 0:00:06]} Qxe7 {[%emt 0:00:01]} 15. Bg5 {[%emt 0:00:02]} Bb7 {[%emt 0:00:07]} 16. Nd4 {[%emt 0:00:09]} Nce4 {[%emt 0:00:07]} 17. Bh4 {[%emt 0:00:14]} Rac8 {[%emt 0:00:06]} 18. f3 {[%emt 0:00:19]} Nc5 {[%emt 0:00:20]} 19. Nf5 {[%emt 0:00:17]} Qc7 {[%emt 0:00:31]} 20. Bxf6 {[%emt 0:00:26]} exf5 {[%emt 0:00:13]} 21. Be5 {[%emt 0:00:04]} Qc6 {[%emt 0:00:06]} 22. b3 {[%emt 0:00:07]} Rfe8 {[%emt 0:00:06]} 23. Qf2 {[%emt 0:00:04]} Qg6 {[%emt 0:00:07]} 24. Rad1 {[%emt 0:00:11]} Rcd8 {[%emt 0:00:16]} 25. Bd4 {[%emt 0:00:13]} Ne6 {[%emt 0:00:08]} 26. Be3 {[%emt 0:00:12]} f4 {[%emt 0:00:02]} 27. Bc1 {[%emt 0:00:07]} Ng5 {[%emt 0:00:12]} 28. Kh1 {[%emt 0:00:01]} Rxd1 {[%emt 0:00:08]} 29. Rxd1 {[%emt 0:00:01]} Qf6 {[%emt 0:00:09]} 30. Re1 {[%emt 0:00:01]} Rxe1+ {[%emt 0:00:03]} 31. Qxe1 {[%emt 0:00:01]} Qd8 {[%emt 0:00:02]} 32. Bxf4 {[%emt 0:00:02]} h6 {[%emt 0:00:02]} 33. Qd2 {[%emt 0:00:04]} Qxd2 {[%emt 0:00:03]} 34. Bxd2 Ne6 {[%emt 0:00:02]} 35. Kg1 {[%emt 0:00:04]} Kf8 {[%emt 0:00:04]} 36. Kf2 {[%emt 0:00:00]} Ke7 {[%emt 0:00:01]} 37. Be3 {[%emt 0:00:01]} Nc5 {[%emt 0:00:04]} 38. Bxc5+ {[%emt 0:00:08]} bxc5 {[%emt 0:00:01]} 39. Ke3 {[%emt 0:00:00]} Kf6 {[%emt 0:00:02]} 40. a3 {[%emt 0:00:08]} Ke7 {[%emt 0:00:05]} 41. b4 {[%emt 0:00:01]} cxb4 42. cxb4 {[%emt 0:00:01]} f6 {[%emt 0:00:06]} 43. Kd4 {[%emt 0:00:02]} Kd6 {[%emt 0:00:00]} 44. a4 {[%emt 0:00:01]} a6 {[%emt 0:00:03]} 45. b5 {[%emt 0:00:03]} axb5 {[%emt 0:00:01]} 46. Bxb5 {[%emt 0:00:01]} g5 {[%emt 0:00:05]} 47. a5 {[%emt 0:00:01]} h5 {[%emt 0:00:04]} 48. a6 {[%emt 0:00:02]} Ba8 {[%emt 0:00:05]} 49. Bd3 {[%emt 0:00:02]} Kc7 {[%emt 0:00:05]} 50. Be4 {[%emt 0:00:02]} Bxe4 {[%emt 0:00:03]} 51. Kxe4 {[%emt 0:00:01]} Kb6 {[%emt 0:00:01]} 52. Kf5 {[%emt 0:00:00]} Kxa6 {[%emt 0:00:01]} 53. Kxf6 {[%emt 0:00:01]} g4 {[%emt 0:00:01]} 54. fxg4 {[%emt 0:00:01]} hxg4 {[%emt 0:00:01]} 55. Kg5 {[%emt 0:00:01]} Kb6 {[%emt 0:00:01]} 56. Kxg4 {[%emt 0:00:01]} Kc6 {[%emt 0:00:02]} 57. Kf5 {[%emt 0:00:00]} Kd5 {[%emt 0:00:02]} 58. h4 {[%emt 0:00:01]} 1-0

[Event "RUS-ch Women Blitz 2019"]
[Site "Sochi"]
[Date "2019.10.17"]
[Round "2.3"]
[White "Bogachkova, Alena"]
[Black "Maltsevskaya, Aleksandra"]
[Result "0-1"]
[ECO "B45"]
[WhiteElo "2060"]
[BlackElo "2333"]
[Annotator "NA"]
[PlyCount "42"]
[EventDate "2019.10.17"]
[EventType "swiss"]
[EventCountry "RUS"]
[SourceTitle "playchess.com"]
[Source "ChessBase"]
[SourceQuality "1"]
[TimeControl "180+2"]

1. e4 {[%emt 0:00:00]} c5 {[%emt 0:00:00]} 2. Ne2 {[%emt 0:00:01]} Nc6 {[%emt 0:00:02]} 3. Nbc3 {[%emt 0:00:01]} e6 {[%emt 0:00:05]} 4. d4 {[%emt 0:00:06]} cxd4 {[%emt 0:00:02]} 5. Nxd4 {[%emt 0:00:01]} Nf6 {[%emt 0:00:04]} 6. Be3 {[%emt 0:00:06]} Bb4 {[%emt 0:00:02]} 7. Bd3 {[%emt 0:00:34]} d5 {[%emt 0:00:02]} 8. Nxc6 {[%emt 0:00:09]} bxc6 {[%emt 0:00:02]} 9. e5 {[%emt 0:00:06]} Nd7 {[%emt 0:00:02]} 10. Bf4 {[%emt 0:00:35]} Qc7 {[%emt 0:01:26]} 11. Qe2 {[%emt 0:00:26]} d4 {[%emt 0:00:26]} 12. a3 {[%emt 0:00:02]} Qa5 {[%emt 0:00:02]} 13. O-O {[%emt 0:00:15]} dxc3 {[%emt 0:00:02]} 14. axb4 {[%emt 0:00:03]} Qxb4 {[%emt 0:00:01]} 15. Qg4 {[%emt 0:00:23]} cxb2 {[%emt 0:00:42]} 16. Rae1 {[%emt 0:00:05]} g6 {[%emt 0:00:05]} 17. Qg3 {[%emt 0:00:09]} a5 {[%emt 0:00:03]} 18. c4 {[%emt 0:00:06]} a4 {[%emt 0:00:02]} 19. Rb1 {[%emt 0:00:13]} a3 {[%emt 0:00:01]} 20. Bc1 {[%emt 0:00:03]} bxc1=Q {[%emt 0:00:08]} 21. Rxb4 {[%emt 0:00:06]} Qc3 {[%emt 0:00:02]} 0-1

[Event "RUS-ch Women Blitz 2019"]
[Site "Sochi"]
[Date "2019.10.17"]
[Round "2.4"]
[White "Dubnikova, Anastasia"]
[Black "Ambartsumova, Karina"]
[Result "1/2-1/2"]
[ECO "A41"]
[WhiteElo "2171"]
[BlackElo "2341"]
[Annotator "NA"]
[PlyCount "104"]
[EventDate "2019.10.17"]
[EventType "swiss"]
[EventCountry "RUS"]
[SourceTitle "playchess.com"]
[Source "ChessBase"]
[SourceQuality "1"]
[TimeControl "180+2"]

1. d4 {[%emt 0:00:00]} d6 {[%emt 0:00:00]} 2. Nf3 {[%emt 0:00:01]} g6 {[%emt 0:00:00]} 3. c4 {[%emt 0:00:01]} Bg7 {[%emt 0:00:01]} 4. Nc3 {[%emt 0:00:01]} e5 {[%emt 0:00:02]} 5. e4 {[%emt 0:00:19]} Bg4 {[%emt 0:00:04]} 6. d5 {[%emt 0:00:14]} Ne7 {[%emt 0:00:17]} 7. Be2 {[%emt 0:00:05]} O-O {[%emt 0:00:04]} 8. h3 {[%emt 0:00:18]} Bxf3 {[%emt 0:00:18]} 9. Bxf3 {[%emt 0:00:02]} Nd7 {[%emt 0:00:02]} 10. h4 {[%emt 0:00:34]} h6 {[%emt 0:00:44]} 11. h5 {[%emt 0:00:20]} g5 {[%emt 0:00:08]} 12. g4 {[%emt 0:00:02]} Bf6 {[%emt 0:00:11]} 13. Be3 {[%emt 0:00:05]} a5 {[%emt 0:00:08]} 14. O-O {[%emt 0:00:16]} b6 {[%emt 0:00:31]} 15. Qc2 {[%emt 0:00:18]} Nc5 {[%emt 0:00:23]} 16. b3 {[%emt 0:00:01]} Bg7 {[%emt 0:00:12]} 17. a3 {[%emt 0:00:05]} a4 {[%emt 0:00:08]} 18. bxa4 {[%emt 0:00:08]} Nb7 {[%emt 0:00:05]} 19. Rab1 {[%emt 0:00:09]} Qd7 {[%emt 0:00:01]} 20. Rb4 {[%emt 0:00:08]} Ra6 {[%emt 0:00:02]} 21. Kg2 {[%emt 0:00:08]} Rfa8 {[%emt 0:00:02]} 22. Kg3 {[%emt 0:00:03]} Bf8 {[%emt 0:00:08]} 23. Rfb1 {[%emt 0:00:04]} Nc8 {[%emt 0:00:02]} 24. Bd1 {[%emt 0:00:08]} Qe7 {[%emt 0:00:02]} 25. Qd3 {[%emt 0:00:05]} Qf6 {[%emt 0:00:01]} 26. Kg2 {[%emt 0:00:06]} Nc5 {[%emt 0:00:01]} 27. Bxc5 {[%emt 0:00:03]} dxc5 {[%emt 0:00:01]} 28. R4b2 {[%emt 0:00:06]} Bd6 {[%emt 0:00:04]} 29. Qf3 {[%emt 0:00:01]} Kg7 {[%emt 0:00:03]} 30. Qxf6+ {[%emt 0:00:03]} Kxf6 {[%emt 0:00:00]} 31. Ne2 {[%emt 0:00:03]} Ne7 {[%emt 0:00:05]} 32. Ng3 {[%emt 0:00:01]} Kg7 {[%emt 0:00:02]} 33. Kf3 {[%emt 0:00:01]} Kf6 {[%emt 0:00:01]} 34. Ke3 {[%emt 0:00:01]} Kg7 {[%emt 0:00:02]} 35. Rb5 {[%emt 0:00:01]} Kf6 {[%emt 0:00:02]} 36. Bc2 {[%emt 0:00:04]} Kg7 {[%emt 0:00:01]} 37. R5b2 {[%emt 0:00:02]} Kf6 {[%emt 0:00:02]} 38. Rf1 {[%emt 0:00:04]} Kg7 {[%emt 0:00:01]} 39. Ke2 {[%emt 0:00:02]} Kf6 {[%emt 0:00:02]} 40. Rd1 {[%emt 0:00:01]} Kg7 {[%emt 0:00:01]} 41. Rd3 {[%emt 0:00:01]} R6a7 {[%emt 0:00:07]} 42. Rf3 {[%emt 0:00:01]} Ra6 {[%emt 0:00:02]} 43. Nf5+ {[%emt 0:00:06]} Nxf5 {[%emt 0:00:02]} 44. Rxf5 {[%emt 0:00:01]} f6 {[%emt 0:00:02]} 45. Rf3 {[%emt 0:00:03]} Ra5 {[%emt 0:00:01]} 46. Rf5 {[%emt 0:00:02]} Kf7 {[%emt 0:00:03]} 47. Kd3 {[%emt 0:00:01]} Ke7 {[%emt 0:00:01]} 48. Kc3 {[%emt 0:00:01]} Rf8 {[%emt 0:00:02]} 49. Rb1 {[%emt 0:00:02]} Rfa8 {[%emt 0:00:03]} 50. Re1 {[%emt 0:00:01]} R5a7 {[%emt 0:00:03]} 51. Re3 {[%emt 0:00:02]} Rf8 {[%emt 0:00:02]} 52. Bb3 {[%emt 0:00:02]} Ra5 {[%emt 0:00:01]} 1/2-1/2

[Event "RUS-ch Women Blitz 2019"]
[Site "Sochi"]
[Date "2019.10.20"]
[Round "2.4"]
[White "Sakorenko, Adriana"]
[Black "Chekina, Anastasiya"]
[Result "1-0"]
[ECO "A05"]
[WhiteElo "1824"]
[BlackElo "1050"]
[Annotator "NA"]
[PlyCount "56"]
[EventDate "2019.10.17"]
[EventType "swiss"]
[EventCountry "RUS"]
[SourceTitle "playchess.com"]
[Source "ChessBase"]
[SourceQuality "1"]
[TimeControl "180+2"]

1. Nf3 {[%emt 0:00:00]} Nf6 {[%emt 0:00:00]} 2. g3 {[%emt 0:00:00]} e6 {[%emt 0:00:03]} 3. Bg2 {[%emt 0:00:01]} d5 {[%emt 0:00:01]} 4. d3 {[%emt 0:00:01]} Bc5 {[%emt 0:00:03]} 5. O-O {[%emt 0:00:03]} Nc6 {[%emt 0:00:01]} 6. c3 {[%emt 0:00:08]} O-O {[%emt 0:00:03]} 7. Nbd2 {[%emt 0:00:01]} e5 {[%emt 0:00:15]} 8. e4 {[%emt 0:00:09]} dxe4 {[%emt 0:00:06]} 9. dxe4 {[%emt 0:00:02]} Re8 {[%emt 0:00:13]} 10. Qc2 {[%emt 0:00:07]} Bg4 {[%emt 0:00:02]} 11. h3 {[%emt 0:00:13]} Bh5 {[%emt 0:00:01]} 12. b4 {[%emt 0:00:07]} Bb6 {[%emt 0:00:05]} 13. Nc4 {[%emt 0:00:10]} a6 {[%emt 0:00:08]} 14. Nxb6 {[%emt 0:00:30]} cxb6 {[%emt 0:00:02]} 15. a4 {[%emt 0:00:21]} Qc7 {[%emt 0:00:06]} 16. Ba3 {[%emt 0:00:31]} Bxf3 {[%emt 0:00:16]} 17. Bxf3 {[%emt 0:00:01]} Nd4 {[%emt 0:00:03]} 18. Qd1 {[%emt 0:00:01]} Qxc3 {[%emt 0:00:16]} 19. Bg2 {[%emt 0:00:01]} Rad8 {[%emt 0:00:43]} 20. Qb1 {[%emt 0:00:16]} Qc2 {[%emt 0:00:27]} 21. Bb2 {[%emt 0:00:38]} Qxb1 {[%emt 0:00:13]} 22. Raxb1 {[%emt 0:00:02]} Ne2+ {[%emt 0:00:10]} 23. Kh2 {[%emt 0:00:01]} Rd2 {[%emt 0:00:02]} 24. Rfd1 {[%emt 0:00:13]} Rxd1 {[%emt 0:00:11]} 25. Rxd1 {[%emt 0:00:00]} Rc8 {[%emt 0:00:11]} 26. Rd2 {[%emt 0:00:07]} Nc3 {[%emt 0:00:02]} 27. Rc2 {[%emt 0:00:03]} Nfxe4 {[%emt 0:00:05]} 28. Bxe4 {[%emt 0:00:01]} Ra8 1-0

[Event "RUS-ch Women Blitz 2019"]
[Site "Sochi"]
[Date "2019.10.17"]
[Round "2.5"]
[White "Guseva, Marina"]
[Black "Yakimova, Mariya"]
[Result "1-0"]
[ECO "A84"]
[WhiteElo "2366"]
[BlackElo "2276"]
[Annotator "NA"]
[PlyCount "135"]
[EventDate "2019.10.17"]
[EventType "swiss"]
[EventCountry "RUS"]
[SourceTitle "playchess.com"]
[Source "ChessBase"]
[SourceQuality "1"]
[TimeControl "180+2"]

1. d4 {[%emt 0:00:00]} f5 {[%emt 0:00:00]} 2. c4 {[%emt 0:00:01]} Nf6 {[%emt 0:00:00]} 3. Nf3 {[%emt 0:00:01]} e6 {[%emt 0:00:00]} 4. g3 {[%emt 0:00:01]} d5 {[%emt 0:00:01]} 5. Bg2 {[%emt 0:00:02]} c6 {[%emt 0:00:02]} 6. Qc2 {[%emt 0:00:01]} Bd6 {[%emt 0:00:01]} 7. O-O {[%emt 0:00:03]} O-O {[%emt 0:00:02]} 8. b3 {[%emt 0:00:02]} Qe7 {[%emt 0:00:01]} 9. a4 {[%emt 0:00:05]} a5 {[%emt 0:00:01]} 10. Ba3 {[%emt 0:00:02]} Bxa3 {[%emt 0:00:01]} 11. Rxa3 {[%emt 0:00:02]} Na6 {[%emt 0:00:08]} 12. Ra1 {[%emt 0:00:03]} Bd7 {[%emt 0:00:02]} 13. Nbd2 {[%emt 0:00:05]} Nb4 {[%emt 0:00:03]} 14. Qb2 {[%emt 0:00:03]} b6 {[%emt 0:00:05]} 15. Ne5 {[%emt 0:00:03]} Rac8 {[%emt 0:00:07]} 16. Ndf3 {[%emt 0:00:11]} Be8 {[%emt 0:00:01]} 17. Rac1 {[%emt 0:00:08]} Bh5 {[%emt 0:00:02]} 18. c5 {[%emt 0:00:09]} Bxf3 {[%emt 0:00:07]} 19. Bxf3 {[%emt 0:00:29]} Nd7 {[%emt 0:00:06]} 20. Nxd7 {[%emt 0:00:07]} Qxd7 {[%emt 0:00:01]} 21. cxb6 {[%emt 0:00:04]} Qb7 {[%emt 0:00:14]} 22. Bg2 {[%emt 0:00:06]} Qxb6 {[%emt 0:00:03]} 23. Qd2 {[%emt 0:00:07]} Na6 {[%emt 0:00:09]} 24. Rc3 {[%emt 0:00:09]} c5 {[%emt 0:00:14]} 25. dxc5 {[%emt 0:00:05]} Rxc5 {[%emt 0:00:03]} 26. Re3 {[%emt 0:00:29]} Rfc8 {[%emt 0:00:11]} 27. Qd4 {[%emt 0:00:03]} R5c6 {[%emt 0:00:08]} 28. Qe5 {[%emt 0:00:23]} Qc7 {[%emt 0:00:23]} 29. Qd4 {[%emt 0:00:12]} Nb4 {[%emt 0:00:01]} 30. Qh4 {[%emt 0:00:11]} Qd8 {[%emt 0:00:16]} 31. Qf4 {[%emt 0:00:13]} Qc7 {[%emt 0:00:15]} 32. Qg5 {[%emt 0:00:02]} Qd8 {[%emt 0:00:03]} 33. Qf4 {[%emt 0:00:00]} Qc7 {[%emt 0:00:04]} 34. Re5 {[%emt 0:00:04]} Rb6 {[%emt 0:00:16]} 35. Bf3 {[%emt 0:00:04]} Qc3 {[%emt 0:00:18]} 36. g4 {[%emt 0:00:06]} fxg4 {[%emt 0:00:20]} 37. Bxg4 {[%emt 0:00:01]} Rf8 {[%emt 0:00:05]} 38. Qg3 {[%emt 0:00:12]} Qxg3+ {[%emt 0:00:01]} 39. hxg3 {[%emt 0:00:01]} Kf7 {[%emt 0:00:02]} 40. Rc1 {[%emt 0:00:01]} Nc6 {[%emt 0:00:08]} 41. Rxe6 {[%emt 0:00:03]} Rc8 {[%emt 0:00:05]} 42. Rd6 {[%emt 0:00:04]} Rc7 {[%emt 0:00:01]} 43. Rxd5 {[%emt 0:00:02]} Rcb7 {[%emt 0:00:05]} 44. Rd7+ {[%emt 0:00:03]} Rxd7 {[%emt 0:00:02]} 45. Bxd7 {[%emt 0:00:01]} Nd4 {[%emt 0:00:01]} 46. Rc7 {[%emt 0:00:03]} Nxe2+ {[%emt 0:00:04]} 47. Kf1 {[%emt 0:00:01]} Nd4 {[%emt 0:00:01]} 48. Bb5+ {[%emt 0:00:02]} Kf6 {[%emt 0:00:04]} 49. Bc4 {[%emt 0:00:02]} Nxb3 {[%emt 0:00:02]} 50. Kg2 {[%emt 0:00:02]} Nd4 {[%emt 0:00:02]} 51. Rc5 {[%emt 0:00:02]} Nc6 {[%emt 0:00:03]} 52. Bd5 {[%emt 0:00:03]} Nb4 {[%emt 0:00:02]} 53. Be4 {[%emt 0:00:01]} Ra6 {[%emt 0:00:03]} 54. Bxh7 {[%emt 0:00:02]} g6 {[%emt 0:00:01]} 55. Bg8 {[%emt 0:00:01]} Nd3 {[%emt 0:00:02]} 56. Rb5 {[%emt 0:00:02]} Ne5 {[%emt 0:00:03]} 57. Bd5 {[%emt 0:00:03]} Ra7 {[%emt 0:00:01]} 58. f4 {[%emt 0:00:02]} Nd7 {[%emt 0:00:03]} 59. Bf3 {[%emt 0:00:02]} Nf8 {[%emt 0:00:03]} 60. Rb6+ {[%emt 0:00:01]} Kg7 {[%emt 0:00:01]} 61. Be4 {[%emt 0:00:01]} Kh6 {[%emt 0:00:04]} 62. Kf3 {[%emt 0:00:02]} Kg7 {[%emt 0:00:02]} 63. g4 {[%emt 0:00:05]} Nd7 {[%emt 0:00:03]} 64. Rxg6+ {[%emt 0:00:01]} Kf7 {[%emt 0:00:00]} 65. Rh6 {[%emt 0:00:02]} Kg7 {[%emt 0:00:02]} 66. Rh7+ {[%emt 0:00:01]} Kf6 {[%emt 0:00:02]} 67. Bf5 {[%emt 0:00:03]} Rc7 {[%emt 0:00:03]} 68. Rxd7 {[%emt 0:00:01]} 1-0